fUSD/lending_fUSD_20250517
["ID","MTS","AMOUNT","RATE_DAILY","PERIOD"]
[361306159,1747440648991,-400.0,0.00016438,2]
[361306160,1747440649002,-400.0,0.00016438,2]
[361306161,1747440649013,-400.0,0.00016438,2]
[361306162,1747440649022,-400.0,0.00016438,2]
[361306163,1747440649033,-400.0,0.00016438,2]
[361306164,1747440649043,-400.0,0.00016438,2]
[361306165,1747440649052,-689.06,0.00016438,2]
[361306166,1747440649062,-1014.73,0.00016438,2]
[361306167,1747440649073,-400.0,0.00016438,2]
[361306168,1747440649083,-400.0,0.00016438,2]
[361306169,1747440649093,-1372.77,0.00016438,2]
[361306170,1747440649103,-400.0,0.00016438,2]
[361306171,1747440649112,-400.0,0.00016438,2]
[361306172,1747440649123,-511.61,0.00016438,2]
[361306173,1747440649132,-400.0,0.00016438,2]
[361306174,1747440649142,-539.85,0.00016438,2]
[361306175,1747440649152,-540.23502681,0.00016438,2]
[361306176,1747440649162,-405.79973432,0.00016438,2]
[361306177,1747440649172,-400.0,0.00016438,2]
[361306178,1747440649182,-400.0,0.00016438,2]
[361306179,1747440649192,-400.0,0.00016438,2]
[361306180,1747440649201,-400.0,0.00016438,2]
[361306181,1747440649211,-1211.03,0.00016438,2]
[361306182,1747440649220,-349.41580069,0.00016438,2]
[361306183,1747440649230,-400.0,0.00016438,2]
[361306184,1747440649240,-400.0,0.00016438,2]
[361306185,1747440649250,-400.0,0.00016438,2]
[361306186,1747440649259,-400.0,0.00016438,2]
[361306187,1747440649269,-151.0,0.00016438,2]
[361306188,1747440649279,-655.49,0.00016438,2]
[361306189,1747440649288,-400.0,0.00016438,2]
[361306190,1747440649298,-400.0,0.00016438,2]
[361306191,1747440649307,-400.0,0.00016438,2]
[361306192,1747440649317,-400.0,0.00016438,2]
[361306193,1747440649326,-400.0,0.00016438,2]
[361306194,1747440649335,-400.0,0.00016438,2]
[361306195,1747440649345,-400.0,0.00016438,2]
[361306196,1747440649355,-1213.74,0.00016438,2]
[361306197,1747440649364,-964.73,0.00016438,2]
[361306198,1747440649374,-400.0,0.00016438,2]
[361306199,1747440649384,-400.0,0.00016438,2]
[361306200,1747440649393,-500.80505899,0.00016438,2]
[361306201,1747440649403,-400.0,0.00016438,2]
[361306202,1747440649412,-400.0,0.00016438,2]
[361306203,1747440649422,-586.69,0.00016438,2]
[361306204,1747440649432,-400.0,0.00016438,2]
[361306205,1747440649442,-400.0,0.00016438,2]
[361306206,1747440649452,-434.81,0.00016438,2]
[361306207,1747440649462,-400.0,0.00016438,2]
[361306208,1747440649472,-1071.76,0.00016438,2]
[361306209,1747440649482,-400.0,0.00016438,2]
[361306210,1747440649492,-400.0,0.00016438,2]
[361306211,1747440649502,-1753.86,0.00016438,2]
[361306212,1747440649511,-400.0,0.00016438,2]
[361306213,1747440649521,-400.0,0.00016438,2]
[361306214,1747440649530,-400.0,0.00016438,2]
[361306215,1747440649540,-406.99911292,0.00016438,2]
[361306216,1747440649549,-638.2,0.00016438,2]
[361306217,1747440649558,-400.0,0.00016438,2]
[361306218,1747440649568,-400.0,0.00016438,2]
[361306219,1747440649578,-400.0,0.00016438,2]
[361306220,1747440649587,-400.0,0.00016438,2]
[361306221,1747440649597,-400.0,0.00016438,2]
[361306222,1747440649607,-400.0,0.00016438,2]
[361306223,1747440649617,-400.0,0.00016438,2]
[361306224,1747440649626,-400.0,0.00016438,2]
[361306225,1747440649637,-648.75,0.00016438,2]
[361306226,1747440649646,-400.0,0.00016438,2]
[361306227,1747440649656,-714.99,0.00016438,2]
[361306228,1747440649665,-400.0,0.00016438,2]
[361306229,1747440649675,-400.0,0.00016438,2]
[361306230,1747440649684,-1703.31,0.00016438,2]
[361306231,1747440649694,-726.64,0.00016438,2]
[361306232,1747440649703,-400.0,0.00016438,2]
[361306233,1747440649713,-400.0,0.00016438,2]
[361306234,1747440649722,-400.0,0.00016438,2]
[361306235,1747440649731,-400.0,0.00016438,2]
[361306236,1747440649741,-405.99184155,0.00016438,2]
[361306237,1747440649750,-400.0,0.00016438,2]
[361306238,1747440649761,-400.0,0.00016438,2]
[361306239,1747440649770,-1264.07,0.00016438,2]
[361306240,1747440649779,-407.38213616,0.00016438,2]
[361306241,1747440649788,-400.0,0.00016438,2]
[361306242,1747440649798,-400.0,0.00016438,2]
[361306243,1747440649809,-400.0,0.00016438,2]
[361306244,1747440649819,-393.23,0.00016438,2]
[361306245,1747440649830,-400.0,0.00016438,2]
[361306246,1747440649839,-772.22,0.00016438,2]
[361306247,1747440649848,-400.0,0.00016438,2]
[361306248,1747440649858,-400.0,0.00016438,2]
[361306249,1747440649867,-725.19,0.00016438,2]
[361306250,1747440649877,-400.0,0.00016438,2]
[361306251,1747440649886,-151.0,0.00016438,2]
[361306252,1747440649895,-400.51294966,0.00016438,2]
[361306253,1747440649904,-151.0,0.00016438,2]
[361306254,1747440649913,-1068.06,0.00016438,2]
[361306255,1747440649922,-400.0,0.00016438,2]
[361306256,1747440649932,-400.0,0.00016438,2]
[361306257,1747440649941,-400.0,0.00016438,2]
[361306258,1747440649950,-725.63,0.00016438,2]
[361306259,1747440649959,-400.0,0.00016438,2]
[361306260,1747440649969,-1553.26,0.00016438,2]
[361306261,1747440649978,-202.20767618,0.00016438,2]
[361306262,1747440649988,-400.0,0.00016438,2]
[361306263,1747440649999,-400.0,0.00016438,2]
[361306264,1747440650008,-585.12,0.00016438,2]
[361306265,1747440650018,-400.0,0.00016438,2]
[361306266,1747440650028,-400.0,0.00016438,2]
[361306267,1747440650039,-652.85,0.00016438,2]
[361306268,1747440650048,-158.368176,0.00016438,2]
[361306269,1747440650058,-400.0,0.00016438,2]
[361306270,1747440650068,-890.58,0.00016438,2]
[361306271,1747440650077,-400.0,0.00016438,2]
[361306272,1747440650087,-515.29411191,0.00016438,2]
[361306273,1747440650097,-556.18,0.00016438,2]
[361306274,1747440650106,-400.0,0.00016438,2]
[361306275,1747440650116,-885.96,0.00016438,2]
[361306276,1747440650125,-400.0,0.00016438,2]
[361306277,1747440650135,-793.56,0.00016438,2]
[361306278,1747440650145,-473.16,0.00016438,2]
[361306279,1747440650154,-577.42,0.00016438,2]
[361306280,1747440650164,-400.0,0.00016438,2]
[361306281,1747440650173,-400.0,0.00016438,2]
[361306282,1747440650182,-1271.56,0.00016438,2]
[361306283,1747440650191,-771.41,0.00016438,2]
[361306284,1747440650201,-400.0,0.00016438,2]
[361306285,1747440650210,-400.0,0.00016438,2]
[361306286,1747440650219,-400.0,0.00016438,2]
[361306287,1747440650229,-400.0,0.00016438,2]
[361306288,1747440650238,-400.0,0.00016438,2]
[361306289,1747440650248,-400.0,0.00016438,2]
[361306290,1747440650257,-400.0,0.00016438,2]
[361306291,1747440650266,-535.96,0.00016438,2]
[361306292,1747440650275,-400.0,0.00016438,2]
[361306293,1747440650284,-388.46278544,0.00016438,2]
[361306294,1747440650293,-400.0,0.00016438,2]
[361306295,1747440650303,-479.2,0.00016438,2]
[361306296,1747440650312,-1015.81,0.00016438,2]
[361306297,1747440650321,-400.0,0.00016438,2]
[361306298,1747440650330,-400.0,0.00016438,2]
[361306299,1747440650339,-404.68,0.00016438,2]
[361306300,1747440650349,-400.0,0.00016438,2]
[361306301,1747440650358,-686.55,0.00016438,2]
[361306302,1747440650368,-400.0,0.00016438,2]
[361306303,1747440650378,-400.0,0.00016438,2]
[361306304,1747440650387,-151.0,0.00016438,2]
[361306305,1747440650396,-1030.92,0.00016438,2]
[361306306,1747440650405,-151.0,0.00016438,2]
[361306307,1747440650415,-1026.83,0.00016438,2]
[361306308,1747440650424,-400.0,0.00016438,2]
[361306309,1747440650434,-400.0,0.00016438,2]
[361306310,1747440650443,-400.0,0.00016438,2]
[361306311,1747440650453,-688.13,0.00016438,2]
[361306312,1747440650462,-423.35,0.00016438,2]
[361306313,1747440650471,-400.0,0.00016438,2]
[361306314,1747440650480,-400.0,0.00016438,2]
[361306315,1747440650489,-400.0,0.00016438,2]
[361306316,1747440650499,-834.42,0.00016438,2]
[361306317,1747440650508,-402.59708598,0.00016438,2]
[361306318,1747440650517,-400.0,0.00016438,2]
[361306319,1747440650526,-522.73,0.00016438,2]
[361306320,1747440650536,-932.696279,0.00016438,2]
[361306321,1747440650545,-400.0,0.00016438,2]
[361306322,1747440650555,-932.696279,0.00016438,2]
[361306323,1747440650565,-1379.73,0.00016438,2]
[361306324,1747440650574,-400.0,0.00016438,2]
[361306325,1747440650583,-400.0,0.00016438,2]
[361306326,1747440650593,-709.68,0.00016438,2]
[361306327,1747440650602,-932.696279,0.00016438,2]
[361306328,1747440650611,-151.0,0.00016438,2]
[361306329,1747440650619,-518.55,0.00016438,2]
[361306330,1747440650629,-932.696279,0.00016438,2]
[361306331,1747440650638,-278.67631143,0.00016438,2]
[361306332,1747440650648,-875.369513,0.00016438,2]
[361306333,1747440650657,-400.0,0.00016438,2]
[361306334,1747440650666,-400.0,0.00016438,2]
[361306335,1747440650676,-400.0,0.00016438,2]
[361306336,1747440650685,-400.0,0.00016438,2]
[361306337,1747440650694,-400.0,0.00016438,2]
[361306338,1747440650703,-759.0,0.00016438,2]
[361306339,1747440650712,-400.0,0.00016438,2]
[361306340,1747440650722,-400.0,0.00016438,2]
[361306341,1747440650732,-486.98,0.00016438,2]
[361306342,1747440650741,-1670.72,0.00016438,2]
[361306343,1747440650750,-400.0,0.00016438,2]
[361306344,1747440650759,-400.0,0.00016438,2]
[361306345,1747440650768,-400.0,0.00016438,2]
[361306346,1747440650777,-400.0,0.00016438,2]
[361306347,1747440650787,-574.11,0.00016438,2]
[361306348,1747440650796,-400.0,0.00016438,2]
[361306349,1747440650806,-1267.43,0.00016438,2]
[361306350,1747440650815,-397.836129,0.00016438,2]
[361306351,1747440650824,-397.836129,0.00016438,2]
[361306352,1747440650833,-400.0,0.00016438,2]
[361306353,1747440650842,-400.0,0.00016438,2]
[361306354,1747440650851,-400.0,0.00016438,2]
[361306355,1747440650860,-400.0,0.00016438,2]
[361306356,1747440650870,-397.836129,0.00016438,2]
[361306357,1747440650880,-397.836129,0.00016438,2]
[361306358,1747440650889,-400.0,0.00016438,2]
[361306359,1747440650898,-400.0,0.00016438,2]
[361306360,1747440650907,-400.0,0.00016438,2]
[361306361,1747440650916,-400.0,0.00016438,2]
[361306362,1747440650925,-1148.72,0.00016438,2]
[361306363,1747440650935,-891.54,0.00016438,2]
[361306364,1747440650944,-400.0,0.00016438,2]
[361306365,1747440650953,-400.0,0.00016438,2]
[361306366,1747440650962,-400.0,0.00016438,2]
[361306367,1747440650971,-400.0,0.00016438,2]
[361306368,1747440650980,-771.76,0.00016438,2]
[361306369,1747440650991,-442.83,0.00016438,2]
[361306370,1747440651001,-400.0,0.00016438,2]
[361306371,1747440651011,-400.0,0.00016438,2]
[361306372,1747440651020,-400.0,0.00016438,2]
[361306373,1747440651030,-400.0,0.00016438,2]
[361306374,1747440651040,-400.0,0.00016438,2]
[361306375,1747440651050,-1187.05,0.00016438,2]
[361306376,1747440651059,-628.36,0.00016438,2]
[361306377,1747440651070,-271.0184067,0.00016438,2]
[361306378,1747440651079,-1246.99,0.00016438,2]
[361306379,1747440651088,-400.0,0.00016438,2]
[361306380,1747440651098,-400.0,0.00016438,2]
[361306381,1747440651107,-151.0,0.00016438,2]
[361306382,1747440651116,-151.0,0.00016438,2]
[361306383,1747440651126,-500.0,0.00016438,2]
[361306384,1747440651139,-400.0,0.00016438,2]
[361306385,1747440651148,-151.0,0.00016438,2]
[361306386,1747440651158,-500.0,0.00016438,2]
[361306387,1747440651167,-500.0,0.00016438,2]
[361306388,1747440651177,-500.0,0.00016438,2]
[361306389,1747440651187,-400.0,0.00016438,2]
[361306390,1747440651197,-1332.18,0.00016438,2]
[361306391,1747440651206,-400.0,0.00016438,2]
[361306392,1747440651216,-400.0,0.00016438,2]
[361306393,1747440651225,-763.8,0.00016438,2]
[361306394,1747440651235,-653.18,0.00016438,2]
[361306395,1747440651244,-400.0,0.00016438,2]
[361306396,1747440651253,-400.0,0.00016438,2]
[361306397,1747440651263,-400.0,0.00016438,2]
[361306398,1747440651272,-446.33,0.00016438,2]
[361306399,1747440651281,-400.0,0.00016438,2]
[361306400,1747440651290,-407.58,0.00016438,2]
[361306401,1747440651299,-400.0,0.00016438,2]
[361306402,1747440651308,-548.96,0.00016438,2]
[361306403,1747440651317,-704.13,0.00016438,2]
[361306404,1747440651326,-400.0,0.00016438,2]
[361306405,1747440651335,-204.47003954,0.00016438,2]
[361306406,1747440651345,-228.182168,0.00016438,2]
[361306407,1747440651354,-400.0,0.00016438,2]
[361306408,1747440651363,-851.96,0.00016438,2]
[361306409,1747440651371,-400.0,0.00016438,2]
[361306410,1747440651383,-400.0,0.00016438,2]
[361306411,1747440651392,-410.83,0.00016438,2]
[361306412,1747440651402,-400.0,0.00016438,2]
[361306413,1747440651411,-400.0,0.00016438,2]
[361306414,1747440651420,-400.0,0.00016438,2]
[361306415,1747440651429,-589.96,0.00016438,2]
[361306416,1747440651439,-400.0,0.00016438,2]
[361306417,1747440651448,-400.0,0.00016438,2]
[361306418,1747440651457,-2590.9,0.00016438,2]
[361306419,1747440651467,-196.105424,0.00016438,2]
[361306420,1747440651476,-569.47,0.00016438,2]
[361306421,1747440651485,-400.0,0.00016438,2]
[361306422,1747440651495,-400.0,0.00016438,2]
[361306423,1747440651735,-689.07,0.00016438,2]
[361306424,1747440651745,-679.54,0.00016438,2]
[361306425,1747440651754,-400.0,0.00016438,2]
[361306426,1747440651763,-400.0,0.00016438,2]
[361306427,1747440651772,-485.8,0.00016438,2]
[361306428,1747440651781,-449.82,0.00016438,2]
[361306429,1747440651791,-400.0,0.00016438,2]
[361306430,1747440651800,-400.0,0.00016438,2]
[361306431,1747440651809,-151.0,0.00016438,2]
[361306432,1747440651818,-400.0,0.00016438,2]
[361306433,1747440651828,-400.0,0.00016438,2]
[361306434,1747440651837,-151.0,0.00016438,2]
[361306435,1747440651847,-1189.07,0.00016438,2]
[361306436,1747440651856,-287.75431256,0.00016438,2]
[361306437,1747440651865,-400.0,0.00016438,2]
[361306438,1747440651875,-400.0,0.00016438,2]
[361306439,1747440651884,-1590.84,0.00016438,2]
[361306440,1747440651893,-400.0,0.00016438,2]
[361306441,1747440651902,-400.0,0.00016438,2]
[361306442,1747440651912,-737.04,0.00016438,2]
[361306443,1747440651921,-631.5,0.00016438,2]
[361306444,1747440651930,-400.0,0.00016438,2]
[361306445,1747440651940,-400.0,0.00016438,2]
[361306446,1747440651950,-400.0,0.00016438,2]
[361306447,1747440651960,-468.92,0.00016438,2]
[361306448,1747440651969,-400.0,0.00016438,2]
[361306449,1747440651979,-285.904943,0.00016438,2]
[361306450,1747440651989,-400.0,0.00016438,2]
[361306451,1747440652004,-285.904943,0.00016438,2]
[361306452,1747440652014,-285.904943,0.00016438,2]
[361306453,1747440652024,-544.95,0.00016438,2]
[361306454,1747440652035,-1002.68,0.00016438,2]
[361306455,1747440652044,-151.0,0.00016438,2]
[361306456,1747440652054,-151.0,0.00016438,2]
[361306457,1747440652063,-151.0,0.00016438,2]
[361306458,1747440652075,-400.0,0.00016438,2]
[361306459,1747440652085,-400.0,0.00016438,2]
[361306460,1747440652095,-400.0,0.00016438,2]
[361306461,1747440652104,-715.54,0.00016438,2]
[361306462,1747440652114,-400.0,0.00016438,2]
[361306463,1747440652123,-400.0,0.00016438,2]
[361306464,1747440652134,-400.0,0.00016438,2]
[361306465,1747440652144,-514.72,0.00016438,2]
[361306466,1747440652154,-285.904943,0.00016438,2]
[361306467,1747440652164,-994.42,0.00016438,2]
[361306468,1747440652174,-285.904943,0.00016438,2]
[361306469,1747440652184,-285.904943,0.00016438,2]
[361306470,1747440652194,-2128.39,0.00016438,2]
[361306471,1747440652203,-400.0,0.00016438,2]
[361306472,1747440652214,-970.09,0.00016438,2]
[361306473,1747440652223,-400.0,0.00016438,2]
[361306474,1747440652233,-400.0,0.00016438,2]
[361306475,1747440652243,-400.0,0.00016438,2]
[361306476,1747440652252,-400.0,0.00016438,2]
[361306477,1747440652262,-400.0,0.00016438,2]
[361306478,1747440652271,-400.0,0.00016438,2]
[361306479,1747440652280,-488.11,0.00016438,2]
[361306480,1747440652290,-400.0,0.00016438,2]
[361306481,1747440652299,-400.0,0.00016438,2]
[361306482,1747440652308,-400.0,0.00016438,2]
[361306483,1747440652318,-1184.45,0.00016438,2]
[361306484,1747440652327,-400.0,0.00016438,2]
[361306485,1747440652336,-400.0,0.00016438,2]
[361306486,1747440652346,-400.0,0.00016438,2]
[361306487,1747440652355,-400.0,0.00016438,2]
[361306488,1747440652364,-1363.11,0.00016438,2]
[361306489,1747440652374,-400.0,0.00016438,2]
[361306490,1747440652384,-503.87,0.00016438,2]
[361306491,1747440652394,-400.0,0.00016438,2]
[361306492,1747440652403,-400.0,0.00016438,2]
[361306493,1747440652413,-151.0,0.00016438,2]
[361306494,1747440652422,-151.0,0.00016438,2]
[361306495,1747440652432,-151.0,0.00016438,2]
[361306496,1747440652441,-400.0,0.00016438,2]
[361306497,1747440652451,-400.0,0.00016438,2]
[361306498,1747440652460,-400.0,0.00016438,2]
[361306499,1747440652469,-400.0,0.00016438,2]
[361306500,1747440652478,-400.0,0.00016438,2]
[361306501,1747440652487,-400.0,0.00016438,2]
[361306502,1747440652496,-400.0,0.00016438,2]
[361306503,1747440652505,-1194.81,0.00016438,2]
[361306504,1747440652514,-489.49813051,0.00016438,2]
[361306505,1747440653222,-89.53186949,0.00016438,2]
[361306506,1747440653232,-676.51,0.00016438,2]
[361306507,1747440653242,-188.95813051,0.00016438,2]
[361306508,1747440659719,11805.69011953,0.00042568,120]
[361306509,1747440662365,1000.0,0.00042568,30]
[361306510,1747440675272,805.50747721,0.00042568,30]
[361306511,1747440713219,400.0,0.00042568,120]
[361306512,1747440724553,156.80306497,0.00042568,30]
[361306513,1747440725161,151.0,0.00042568,120]
[361306514,1747440725213,500.0,0.00042568,120]
[361306515,1747440725284,155.0,0.00042568,120]
[361306516,1747440725566,500.0,0.00042568,120]
[361306517,1747440725659,151.0,0.00042568,120]
[361306518,1747440725852,518.5,0.00042568,120]
[361306519,1747440726206,518.5,0.00042568,120]
[361306520,1747440726252,151.0,0.00042568,120]
[361306521,1747440726332,156.587,0.00042568,120]
[361306522,1747440726711,537.6845,0.00042568,120]
[361306523,1747440727414,537.6845,0.00042568,120]
[361306524,1747440727481,156.587,0.00042568,120]
[361306525,1747440727677,557.5788265,0.00042568,120]
[361306526,1747440728207,578.20924308,0.00042568,120]
[361306527,1747440730307,200.0,0.00042568,120]
[361306528,1747440730933,207.4,0.00042568,120]
[361306529,1747440731568,215.0738,0.00042568,120]
[361306530,1747440735124,1000.0,0.00042568,120]
[361306531,1747440736140,1037.0,0.00042568,120]
[361306532,1747440737005,1075.369,0.00042568,120]
[361306533,1747440802537,329.94,0.00042568,30]
[361306534,1747440802802,329.94,0.00042568,40]
[361306535,1747440803067,329.94,0.00042568,50]
[361306536,1747440803377,329.94,0.00042568,60]
[361306537,1747440803538,329.94,0.00042568,70]
[361306538,1747440803771,329.94,0.00042568,80]
[361306539,1747440804011,329.94,0.00042568,90]
[361306540,1747440804313,329.94,0.00042568,100]
[361306541,1747440804508,329.94,0.00042568,110]
[361306542,1747440804751,329.94,0.00042568,120]
[361306543,1747440805007,329.94,0.00042568,120]
[361306544,1747440805239,329.94,0.00042568,120]
[361306545,1747440805525,329.94,0.00042568,120]
[361306546,1747440805785,329.94,0.00042568,120]
[361306547,1747440806044,329.94,0.00042568,120]
[361306548,1747440806407,329.94,0.00042568,120]
[361306549,1747440806518,329.94,0.00042568,120]
[361306550,1747440806770,329.94,0.00042568,120]
[361306551,1747440806999,329.94,0.00042568,120]
[361306552,1747440807243,329.94,0.00042568,120]
[361306553,1747440807486,329.94,0.00042568,120]
[361306554,1747440807814,329.94,0.00042568,120]
[361306555,1747440808092,329.94,0.00042568,120]
[361306556,1747440808327,330.12,0.00042568,120]
[361306557,1747440809804,8695.0,0.00042568,120]
[361306558,1747440948002,29851.43145,0.00042567,120]
[361306559,1747441005012,2148.06939,0.00042567,120]
[361306560,1747441028260,1039.36731057,0.00042567,120]
[361306561,1747441028440,207.1262,0.00042567,120]
[361306562,1747441210032,152.49,0.000249,31]
[361306563,1747441210103,152.49,0.000249,31]
[361306564,1747441343688,400.0,0.0004259,30]
[361306565,1747441417505,400.0,0.0004259,30]
[361306566,1747441491603,400.0,0.0004259,30]
[361306567,1747441496695,16220.4528,0.0004259,120]
[361306568,1747441538095,-578.01,0.00012939,2]
[361306569,1747441538118,-191.16040501,0.00013699,2]
[361306570,1747441567713,13743.22354229,0.0004259,120]
[361306571,1747441577322,400.0,0.0004259,30]
[361306572,1747441620646,400.0,0.0004259,30]
[361306573,1747441637101,-162.44959499,0.00013699,2]
[361306574,1747441637123,-496.44772057,0.00014808,2]
[361306575,1747441638771,400.0,0.0004259,30]
[361306576,1747441671432,400.0,0.0004259,30]
[361306577,1747441720289,152.51427846,0.0004259,30]
[361306580,1747441723306,400.0,0.0004259,30]
[361306583,1747441745087,-4285.76461588,0.00013,2]
[361306584,1747441745112,-5175.20415574,0.0001305,2]
[361306585,1747441745136,-300.0,0.00014704,2]
[361306586,1747441745160,-1506.52,0.00014705,2]
[361306587,1747441745185,-703.55227943,0.00014808,2]
[361306588,1747441745209,-197.0,0.00014808,2]
[361306589,1747441745234,-1036.2,0.00014809,2]
[361306590,1747441745258,-14944.41,0.00014809,2]
[361306591,1747441745283,-1000.0,0.00014814,2]
[361306592,1747441745308,-23900.0,0.00014815,2]
[361306593,1747441745333,-197.22,0.0001484,2]
[361306594,1747441745356,-2240.4,0.00014847,2]
[361306595,1747441745380,-200.0,0.00014855,2]
[361306596,1747441745404,-163.15,0.00014866,2]
[361306597,1747441745434,-1050.17,0.00014872,2]
[361306598,1747441745461,-228.8,0.00014877,2]
[361306599,1747441745487,-837.37,0.00014894,2]
[361306600,1747441745514,-1500.0,0.00014894,2]
[361306601,1747441745542,-90.23446895,0.000149,2]
[361306604,1747441760141,-425.87149161,0.000149,2]
[361306605,1747441760163,-107.50330839,0.00014963,2]
[361306606,1747441763110,-92.49669161,0.00014963,2]
[361306607,1747441763131,-516.10596046,0.00015176,2]
[361306608,1747441763153,-533.67554793,0.00015203,2]
[361306629,1747441832041,-500.0,0.00014861,2]
[361306630,1747441832050,-150.0,0.00014899,2]
[361306631,1747441832059,-1200.0,0.00015202,2]
[361306632,1747441832069,-44.33445207,0.00015203,2]
[361306633,1747441832079,-793.38344499,0.00015203,2]
[361306634,1747441832137,-2866.99173071,0.00015203,2]
[361306635,1747441832146,-261.63848029,0.00015203,2]
[361306636,1747441832156,-166.77,0.00015297,2]
[361306637,1747441832165,-228.8,0.00015435,2]
[361306638,1747441832174,-516.10596046,0.00015452,2]
[361306639,1747441832183,-834.89468261,0.000155,2]
[361306640,1747441832192,-300.0,0.00015518,2]
[361306641,1747441832201,-153.13,0.00015519,2]
[361306642,1747441832211,-4000.0,0.00015519,2]
[361306643,1747441832220,-250.0,0.00015522,2]
[361306644,1747441832229,-200.0,0.00015522,2]
[361306645,1747441832238,-153.13,0.00015525,2]
[361306646,1747441832247,-200.0,0.00015529,2]
[361306647,1747441832256,-153.13,0.0001553,2]
[361306648,1747441832265,-250.0,0.00015536,2]
[361306649,1747441832275,-153.13,0.00015536,2]
[361306651,1747441832284,-153.13,0.00015541,2]
[361306653,1747441832293,-153.13,0.00015547,2]
[361306654,1747441832303,-153.13,0.00015552,2]
[361306655,1747441832312,-153.13,0.00015558,2]
[361306656,1747441832321,-153.13,0.00015563,2]
[361306657,1747441832331,-153.13,0.00015569,2]
[361306658,1747441832340,-153.13,0.00015575,2]
[361306659,1747441832349,-153.13,0.0001558,2]
[361306660,1747441832360,-153.13,0.00015586,2]
[361306661,1747441832369,-300.0,0.00015591,2]
[361306662,1747441832379,-153.13,0.00015591,2]
[361306663,1747441832388,-153.13,0.00015597,2]
[361306665,1747441832397,-1122.47,0.00015646,2]
[361306667,1747441832407,-2837.8,0.000157,2]
[361306669,1747441832417,-900.0,0.000157,5]
[361306671,1747441832426,-516.10596046,0.00015728,2]
[361306673,1747441832435,-2837.8,0.000158,2]
[361306675,1747441832445,-1900.0,0.000158,5]
[361306677,1747441832454,-150.0,0.0001589,2]
[361306679,1747441832463,-500.0,0.00015898,2]
[361306681,1747441832473,-500.0,0.00015898,2]
[361306684,1747441832482,-500.0,0.00015898,2]
[361306686,1747441832491,-500.0,0.00015898,2]
[361306687,1747441832500,-83.67318552,0.00015898,2]
[361306688,1747441833008,-416.32681448,0.00015898,2]
[361306689,1747441833018,-32.792688,0.00015898,2]
[361306690,1747441833029,-467.207312,0.00015898,2]
[361306691,1747441833038,-500.0,0.00015898,2]
[361306692,1747441833047,-500.0,0.00015898,2]
[361306693,1747441833056,-451.10083477,0.00015898,2]
[361306694,1747441833099,-48.89916523,0.00015898,2]
[361306695,1747441833110,-500.0,0.00015898,2]
[361306696,1747441833119,-500.0,0.00015898,2]
[361306697,1747441833129,-500.0,0.00015898,2]
[361306698,1747441833138,-500.0,0.00015898,2]